fUST/lending_fUST_20250227
["ID","MTS","AMOUNT","RATE_DAILY","PERIOD"]
[354610772,1740595900692,-1000.0,0.00055,120]
[354610774,1740595900703,-1000.0,0.00055,120]
[354610776,1740595900713,-12614.0,0.00055,120]
[354610778,1740595900723,-6186.0,0.00055,120]
[354610780,1740595900732,-1866.0,0.00055,120]
[354610782,1740595900741,-1838.0,0.00055,120]
[354610784,1740595900751,-309.0,0.00055,120]
[354610786,1740595900761,-2251.0,0.00055,120]
[354610788,1740595900770,-250.0,0.00055048,15]
[354610790,1740595900780,-512.66603393,0.00055068,30]
[354610792,1740595900790,-2000.0,0.00055068,120]
[354610794,1740595900800,-500.0,0.00055068,120]
[354610796,1740595900809,-828.49,0.00055068,120]
[354610798,1740595900818,-500.0,0.00055068,120]
[354610800,1740595900828,-151.0,0.00055068,120]
[354610802,1740595900838,-840.04,0.00055068,120]
[354610804,1740595900849,-300.0,0.00055068,120]
[354610806,1740595900859,-227.84843417,0.00055068,120]
[354610808,1740595900868,-799.37,0.00055068,120]
[354610810,1740595900878,-388.955738,0.00055068,120]
[354610812,1740595900887,-388.955738,0.00055068,120]
[354610814,1740595900898,-500.0,0.00055068,120]
[354610816,1740595900907,-500.0,0.00055068,120]
[354610818,1740595900917,-500.0,0.00055068,120]
[354610820,1740595900927,-526.23,0.00055068,120]
[354610822,1740595900936,-525.22,0.00055068,120]
[354610824,1740595900948,-500.0,0.00055068,120]
[354610826,1740595900957,-692.43,0.00055068,120]
[354610828,1740595900968,-566.11,0.00055068,14]
[354610830,1740595900981,-1177.15,0.00055068,120]
[354610832,1740595900993,-500.0,0.00055068,120]
[354610834,1740595901006,-500.0,0.00055068,120]
[354610836,1740595901017,-1194.96,0.00055068,120]
[354610838,1740595901027,-500.0,0.00055068,120]
[354610840,1740595901039,-1734.78,0.00055068,120]
[354610842,1740595901049,-1448.26,0.00055068,120]
[354610844,1740595901061,-500.0,0.00055068,120]
[354610846,1740595901073,-500.0,0.00055068,120]
[354610848,1740595901084,-500.0,0.00055068,120]
[354610850,1740595901094,-772.59,0.00055068,120]
[354610852,1740595901114,-576.98,0.00055068,120]
[354610854,1740595901125,-599.45,0.00055068,120]
[354610856,1740595901137,-500.0,0.00055068,120]
[354610858,1740595901147,-582.65,0.00055068,120]
[354610860,1740595901158,-500.0,0.00055068,120]
[354610862,1740595901168,-518.67,0.00055068,120]
[354610864,1740595901179,-524.39,0.00055068,120]
[354610866,1740595901190,-540.34,0.00055068,120]
[354610868,1740595901202,-707.66,0.00055068,120]
[354610870,1740595901212,-550.99345741,0.00055068,120]
[354610872,1740595901223,-879.42,0.00055068,120]
[354610874,1740595901233,-894.65,0.00055068,120]
[354610876,1740595901244,-500.0,0.00055068,120]
[354610878,1740595901256,-523.35,0.00055068,120]
[354610880,1740595901267,-360.44134099,0.00055068,120]
[354610882,1740595901279,-500.0,0.00055068,120]
[354610884,1740595901290,-500.0,0.00055068,120]
[354610886,1740595901301,-500.0,0.00055068,120]
[354610888,1740595901314,-630.3,0.00055068,120]
[354610890,1740595901325,-500.0,0.00055068,120]
[354610892,1740595901336,-500.0,0.00055068,120]
[354610894,1740595901347,-757.41,0.00055068,120]
[354610896,1740595901363,-618.62,0.00055068,120]
[354610899,1740595901378,-1759.91,0.00055068,120]
[354610901,1740595901389,-1105.48,0.00055068,120]
[354610913,1740595901592,-849.13,0.00055068,120]
[354610914,1740595901607,-500.0,0.00055068,120]
[354610915,1740595901619,-578.35,0.00055068,120]
[354610916,1740595901632,-827.78,0.00055068,120]
[354610917,1740595901642,-1260.45,0.00055068,120]
[354610918,1740595901655,-624.52,0.00055068,120]
[354610919,1740595901666,-1553.65,0.00055068,120]
[354610920,1740595901677,-515.01,0.00055068,120]
[354610921,1740595901688,-558.26,0.00055068,120]
[354610922,1740595901699,-500.0,0.00055068,120]
[354610923,1740595901710,-527.02,0.00055068,120]
[354610924,1740595901720,-700.01,0.00055068,120]
[354610926,1740595901731,-751.69,0.00055068,120]
[354610928,1740595901743,-500.0,0.00055068,15]
[354610930,1740595901754,-1613.85,0.00055068,120]
[354610932,1740595901765,-1300.61,0.00055068,120]
[354610934,1740595901776,-667.88,0.00055068,120]
[354610936,1740595901788,-2143.47,0.00055068,120]
[354610938,1740595901799,-536.16478862,0.00055068,120]
[354610940,1740595901811,-872.97,0.00055068,120]
[354610942,1740595901822,-500.0,0.00055068,120]
[354610944,1740595901834,-1346.61,0.00055068,120]
[354610946,1740595901846,-2396.98,0.00055068,120]
[354610948,1740595901860,-500.0,0.00055068,120]
[354610950,1740595901871,-640.62,0.00055068,120]
[354610952,1740595901882,-1154.76,0.00055068,120]
[354610954,1740595901893,-500.0,0.00055068,120]
[354610956,1740595901904,-500.0,0.00055068,120]
[354610958,1740595901915,-500.0,0.00055068,120]
[354610960,1740595901926,-500.0,0.00055068,120]
[354610962,1740595901938,-1463.13,0.00055068,120]
[354610964,1740595901959,-500.0,0.00055068,120]
[354610966,1740595901975,-2977.1,0.00055068,120]
[354610968,1740595901986,-3444.22,0.00055068,120]
[354610969,1740595901999,-1010.42,0.00055068,120]
[354610971,1740595902010,-522.19,0.00055068,30]
[354610974,1740595902021,-2884.86,0.00055068,120]
[354610976,1740595902033,-989.6,0.00055068,120]
[354610978,1740595902044,-1121.27,0.00055068,120]
[354610980,1740595902055,-500.0,0.00055068,120]
[354610981,1740595902066,-1101.44,0.00055068,120]
[354610983,1740595902078,-500.0,0.00055068,45]
[354610985,1740595902089,-1764.14,0.00055068,120]
[354610987,1740595902102,-588.25,0.00055068,120]
[354610989,1740595902112,-2377.1,0.00055068,120]
[354610991,1740595902124,-852.55,0.00055068,120]
[354610993,1740595902136,-424.42217427,0.00055068,120]
[354610995,1740595902147,-1100.79,0.00055068,120]
[354610997,1740595902158,-502.64896479,0.00055068,120]
[354610999,1740595902170,-1552.98,0.00055068,120]
[354611001,1740595902182,-500.0,0.00055068,120]
[354611003,1740595902193,-500.0,0.00055068,120]
[354611005,1740595902204,-543.36,0.00055068,120]
[354611007,1740595902215,-797.98,0.00055068,120]
[354611009,1740595902226,-951.27,0.00055068,120]
[354611011,1740595902237,-500.0,0.00055068,120]
[354611013,1740595902249,-888.97,0.00055068,120]
[354611015,1740595902260,-612.57,0.00055068,120]
[354611017,1740595902271,-2699.87,0.00055068,120]
[354611019,1740595902282,-359.23152041,0.00055068,120]
[354611021,1740595902293,-1580.11,0.00055068,120]
[354611023,1740595902302,-500.0,0.00055068,120]
[354611025,1740595902312,-1704.51,0.00055068,120]
[354611027,1740595902322,-500.0,0.00055068,120]
[354611029,1740595902332,-788.27,0.00055068,120]
[354611031,1740595902341,-1099.83,0.00055068,120]
[354611034,1740595902355,-1902.4,0.00055068,120]
[354611035,1740595902366,-878.04,0.00055068,120]
[354611038,1740595902377,-500.0,0.00055068,120]
[354611039,1740595902388,-345.07915279,0.00055068,120]
[354611041,1740595902399,-500.0,0.00055068,120]
[354611044,1740595902410,-441.70924259,0.00055068,120]
[354611046,1740595902419,-500.0,0.00055068,120]
[354611048,1740595902429,-500.0,0.00055068,120]
[354611050,1740595902438,-1372.49,0.00055068,120]
[354611051,1740595902447,-500.0,0.00055068,120]
[354611053,1740595902457,-2314.27,0.00055068,120]
[354611055,1740595902467,-1486.63,0.00055068,120]
[354611057,1740595902478,-822.39,0.00055068,120]
[354611059,1740595902488,-901.59,0.00055068,120]
[354611061,1740595902498,-500.0,0.00055068,120]
[354611063,1740595902508,-1677.06,0.00055068,120]
[354611065,1740595902518,-1205.34,0.00055068,120]
[354611067,1740595902528,-500.0,0.00055068,120]
[354611069,1740595902537,-500.0,0.00055068,120]
[354611071,1740595902546,-2294.05,0.00055068,120]
[354611073,1740595902556,-500.0,0.00055068,120]
[354611075,1740595902566,-1120.61,0.00055068,120]
[354611077,1740595902576,-604.64,0.00055068,120]
[354611079,1740595902585,-500.0,0.00055068,120]
[354611082,1740595902595,-1074.36,0.00055068,120]
[354611084,1740595902608,-500.0,0.00055068,120]
[354611086,1740595902617,-527.7,0.00055068,120]
[354611088,1740595902627,-806.28,0.00055068,120]
[354611089,1740595902637,-1834.97,0.00055068,120]
[354611092,1740595902648,-500.0,0.00055068,120]
[354611094,1740595902659,-841.31,0.00055068,120]
[354611095,1740595902670,-1149.59,0.00055068,120]
[354611097,1740595902681,-500.0,0.00055068,120]
[354611100,1740595902691,-500.0,0.00055068,120]
[354611102,1740595902701,-500.0,0.00055068,120]
[354611104,1740595902711,-504.48,0.00055068,120]
[354611106,1740595902720,-500.0,0.00055068,120]
[354611107,1740595902730,-610.98,0.00055068,120]
[354611110,1740595902740,-500.0,0.00055068,120]
[354611111,1740595902750,-919.11,0.00055068,120]
[354611113,1740595902760,-500.0,0.00055068,120]
[354611115,1740595902770,-1139.22,0.00055068,120]
[354611117,1740595902780,-1427.81,0.00055068,120]
[354611119,1740595902789,-3966.28,0.00055068,120]
[354611121,1740595902798,-500.0,0.00055068,21]
[354611123,1740595902807,-1179.25,0.00055068,120]
[354611125,1740595902817,-643.49,0.00055068,120]
[354611127,1740595902827,-9738.58,0.00055068,120]
[354611129,1740595902836,-801.82,0.00055068,120]
[354611132,1740595902846,-500.0,0.00055068,120]
[354611133,1740595902860,-911.86,0.00055068,120]
[354611136,1740595902870,-500.0,0.00055068,120]
[354611137,1740595902880,-552.77,0.00055068,120]
[354611139,1740595902890,-11052.45,0.00055068,120]
[354611141,1740595902900,-500.05,0.00055068,120]
[354611144,1740595902912,-500.0,0.00055068,120]
[354611146,1740595902922,-587.37,0.00055068,120]
[354611148,1740595902933,-3684.76,0.00055068,120]
[354611150,1740595902945,-517.75,0.00055068,120]
[354611152,1740595902958,-3499.84,0.00055068,120]
[354611154,1740595902968,-1015.05,0.00055068,120]
[354611156,1740595902979,-13581.8,0.00055068,120]
[354611158,1740595902992,-1570.34,0.00055068,120]
[354611160,1740595903005,-15292.47,0.00055068,120]
[354611161,1740595903015,-500.0,0.00055068,120]
[354611163,1740595903026,-265.26645994,0.00055068,120]
[354611166,1740595903038,-402.88657212,0.00055068,120]
[354611168,1740595903049,-1020.31,0.00055068,120]
[354611170,1740595903060,-690.39,0.00055068,120]
[354611172,1740595903071,-3105.4,0.00055068,120]
[354611174,1740595903082,-834.44,0.00055068,30]
[354611176,1740595903093,-2309.16,0.00055068,120]
[354611178,1740595903107,-10799.99,0.00055068,120]
[354611180,1740595903117,-500.0,0.00055068,120]
[354611182,1740595903127,-850.01,0.00055068,120]
[354611184,1740595903137,-500.0,0.00055068,120]
[354611186,1740595903148,-4233.08,0.00055068,120]
[354611188,1740595903159,-4180.32,0.00055068,120]
[354611190,1740595903171,-2800.4,0.00055068,120]
[354611192,1740595903183,-583.3,0.00055068,120]
[354611194,1740595903194,-2084.49,0.00055068,120]
[354611196,1740595903206,-2951.73,0.00055068,120]
[354611198,1740595903217,-2431.59,0.00055068,120]
[354611200,1740595903229,-1918.79,0.00055068,120]
[354611202,1740595903240,-1679.17,0.00055068,120]
[354611204,1740595903251,-514.65,0.00055068,120]
[354611206,1740595903262,-2627.04,0.00055068,120]
[354611208,1740595903274,-1409.36,0.00055068,120]
[354611210,1740595903286,-785.21,0.00055068,120]
[354611212,1740595903296,-834.81,0.00055068,120]
[354611214,1740595903307,-3016.52,0.00055068,120]
[354611216,1740595903318,-684.79,0.00055068,120]
[354611218,1740595903328,-2867.38,0.00055068,120]
[354611220,1740595903338,-928.1,0.00055068,120]
[354611221,1740595903352,-511.43,0.00055068,120]
[354611222,1740595903362,-163172.77,0.00055068,7]
[354611223,1740595903374,-567.25,0.00055068,120]
[354611224,1740595903384,-4605.54,0.00055068,120]
[354611225,1740595903395,-884.36,0.00055068,120]
[354611226,1740595903405,-573.56,0.00055068,120]
[354611228,1740595903415,-1964.79,0.00055068,120]
[354611230,1740595903426,-29115.5,0.00055068,120]
[354611232,1740595903436,-644.01,0.00055068,120]
[354611234,1740595903447,-1853.52,0.00055068,120]
[354611236,1740595903458,-500.0,0.00055068,120]
[354611238,1740595903468,-627.73,0.00055068,120]
[354611240,1740595903478,-1150.38,0.00055068,120]
[354611242,1740595903488,-8691.74,0.00055068,120]
[354611244,1740595903498,-820.33,0.00055068,120]
[354611246,1740595903508,-1232.27,0.00055068,120]
[354611248,1740595903518,-8198.21,0.00055068,120]
[354611250,1740595903527,-1218.92,0.00055068,120]
[354611252,1740595903537,-1991.01,0.00055068,120]
[354611254,1740595903547,-264.23,0.00055068,7]
[354611256,1740595903556,-820.98,0.00055068,120]
[354611258,1740595903566,-555.9,0.00055068,120]
[354611260,1740595903578,-35881.26,0.00055068,120]
[354611261,1740595903588,-1000.0,0.00055068,2]
[354611263,1740595903597,-2923.8,0.00055068,120]
[354611265,1740595903610,-949.77,0.00055068,120]
[354611267,1740595903619,-500.0,0.00055068,120]
[354611269,1740595903628,-14356.2,0.00055068,120]
[354611271,1740595903637,-689.35,0.00055068,120]
[354611273,1740595903646,-853.36,0.00055068,120]
[354611275,1740595903656,-4865.11,0.00055068,120]
[354611277,1740595903665,-2475.11,0.00055068,120]
[354611279,1740595903674,-2671.56,0.00055068,120]
[354611281,1740595903683,-5089.13,0.00055068,120]
[354611283,1740595903694,-514.99,0.00055068,120]
[354611285,1740595903703,-44424.48,0.00055068,6]
[354611287,1740595903711,-520.61,0.00055068,120]
[354611289,1740595903721,-1173.4,0.00055068,120]
[354611291,1740595903731,-500.0,0.00055068,120]
[354611293,1740595903740,-3489.83,0.00055068,120]
[354611295,1740595903750,-1066.43,0.00055068,120]
[354611297,1740595903760,-1957.38,0.00055068,120]
[354611299,1740595903770,-2424.79,0.00055068,120]
[354611301,1740595903782,-500.0,0.00055068,120]
[354611303,1740595903792,-21424.0,0.00055068,120]
[354611305,1740595903802,-519.69,0.00055068,120]
[354611308,1740595903812,-526.05,0.00055068,120]
[354611310,1740595903822,-1666.71,0.00055068,120]
[354611312,1740595903831,-3965.85,0.00055068,120]
[354611314,1740595903841,-500.0,0.00055068,120]
[354611316,1740595903854,-788.51,0.00055068,120]
[354611318,1740595903863,-1619.69,0.00055068,120]
[354611320,1740595903873,-1722.02,0.00055068,120]
[354611322,1740595903883,-4778.1,0.00055068,120]
[354611335,1740595904002,-2593.09,0.00055068,120]
[354611338,1740595904023,-1690.26,0.00055068,120]
[354611340,1740595904034,-812.11,0.00055068,120]
[354611342,1740595904045,-710.16,0.00055068,120]
[354611344,1740595904055,-1536.25,0.00055068,120]
[354611346,1740595904065,-626.19,0.00055068,120]
[354611348,1740595904075,-541.13,0.00055068,120]
[354611350,1740595904088,-512.95,0.00055068,120]
[354611352,1740595904097,-1851.36,0.00055068,120]
[354611354,1740595904110,-662.82,0.00055068,120]
[354611356,1740595904121,-10264.39,0.00055068,120]
[354611358,1740595904130,-810.19,0.00055068,120]
[354611360,1740595904140,-991.77,0.00055068,120]
[354611363,1740595904150,-3331.35,0.00055068,120]
[354611365,1740595904159,-5881.5,0.00055068,120]
[354611367,1740595904170,-1213.93,0.00055068,120]
[354611369,1740595904180,-2374.13,0.00055068,120]
[354611371,1740595904191,-2465.59,0.00055068,120]
[354611373,1740595904201,-782.08,0.00055068,120]
[354611375,1740595904211,-500.0,0.00055068,120]
[354611377,1740595904220,-500.0,0.00055068,120]
[354611379,1740595904230,-1294.2,0.00055068,120]
[354611381,1740595904240,-7797.57,0.00055068,120]
[354611383,1740595904251,-150.32,0.00055069,30]
[354611385,1740595904261,-1567.96694734,0.00055342,120]
[354611387,1740595904271,-500.0,0.00055342,120]
[354611389,1740595904281,-828.49,0.00055342,120]
[354611391,1740595904293,-500.0,0.00055342,120]
[354611393,1740595904303,-840.04,0.00055342,120]
[354611395,1740595904313,-198.03430632,0.00055342,120]
[354611397,1740595904323,-799.37,0.00055342,120]
[354611399,1740595904333,-388.955738,0.00055342,120]
[354611401,1740595904343,-388.955728,0.00055342,120]
[354611403,1740595904355,-500.0,0.00055342,120]
[354611405,1740595904365,-500.0,0.00055342,120]
[354611407,1740595904375,-500.0,0.00055342,120]
[354611409,1740595904385,-526.23,0.00055342,120]
[354611411,1740595904395,-525.22,0.00055342,120]
[354611413,1740595904406,-381.23246238,0.00055342,120]
[354611415,1740595904416,-692.43,0.00055342,120]
[354611417,1740595904426,-566.11,0.00055342,14]
[354611418,1740595904437,-1177.15,0.00055342,120]
[354611420,1740595904446,-500.0,0.00055342,120]
[354611422,1740595904456,-500.0,0.00055342,120]
[354611425,1740595904466,-1194.96,0.00055342,120]
[354611427,1740595904475,-500.0,0.00055342,120]
[354611429,1740595904485,-1734.78,0.00055342,120]
[354611431,1740595904497,-1448.26,0.00055342,120]
[354611433,1740595904506,-500.0,0.00055342,120]
[354611435,1740595904515,-248.53315168,0.00055342,120]
[354611437,1740595904525,-500.0,0.00055342,120]
[354611439,1740595904534,-772.59,0.00055342,120]
[354611441,1740595904543,-576.98,0.00055342,120]
[354611443,1740595904553,-599.45,0.00055342,120]
[354611445,1740595904563,-500.0,0.00055342,120]
[354611447,1740595904572,-582.65,0.00055342,120]
[354611449,1740595904582,-500.0,0.00055342,120]
[354611451,1740595904591,-518.67,0.00055342,120]
[354611452,1740595904600,-524.39,0.00055342,120]
[354611455,1740595904613,-540.34,0.00055342,120]
[354611456,1740595904623,-707.66,0.00055342,120]
[354611458,1740595904633,-879.42,0.00055342,120]
[354611460,1740595904642,-894.65,0.00055342,120]
[354611462,1740595904651,-500.0,0.00055342,120]
[354611464,1740595904660,-523.35,0.00055342,120]
[354611466,1740595904669,-500.0,0.00055342,120]
[354611468,1740595904679,-500.0,0.00055342,120]
[354611470,1740595904689,-500.0,0.00055342,120]
[354611473,1740595904698,-630.3,0.00055342,120]
[354611475,1740595904708,-500.0,0.00055342,120]
[354611477,1740595904718,-500.0,0.00055342,120]
[354611479,1740595904728,-757.41,0.00055342,120]
[354611481,1740595904737,-618.62,0.00055342,120]
[354611483,1740595904747,-1759.91,0.00055342,120]
[354611485,1740595904756,-1105.48,0.00055342,120]
[354611487,1740595904766,-849.13,0.00055342,120]
[354611489,1740595904775,-500.0,0.00055342,120]
[354611491,1740595904785,-578.35,0.00055342,120]
[354611493,1740595904794,-827.78,0.00055342,120]
[354611495,1740595904804,-1260.45,0.00055342,120]
[354611497,1740595904813,-624.52,0.00055342,120]
[354611499,1740595904823,-1553.65,0.00055342,120]
[354611501,1740595904832,-515.01,0.00055342,120]
[354611503,1740595904843,-558.26,0.00055342,120]
[354611505,1740595904852,-500.0,0.00055342,120]
[354611506,1740595904865,-527.02,0.00055342,120]
[354611509,1740595904875,-700.01,0.00055342,120]
[354611510,1740595904884,-751.69,0.00055342,120]
[354611513,1740595904895,-500.0,0.00055342,15]
[354611515,1740595904905,-1613.85,0.00055342,120]
[354611517,1740595904915,-1300.61,0.00055342,120]
[354611519,1740595904925,-667.88,0.00055342,120]
[354611521,1740595904936,-2143.47,0.00055342,120]
[354611523,1740595904947,-872.97,0.00055342,120]
[354611525,1740595904958,-500.0,0.00055342,120]
[354611527,1740595904968,-1346.61,0.00055342,120]
[354611529,1740595904977,-2396.98,0.00055342,120]
[354611531,1740595904987,-500.0,0.00055342,120]
[354611533,1740595905001,-640.62,0.00055342,120]
[354611535,1740595905011,-1154.76,0.00055342,120]
[354611537,1740595905021,-500.0,0.00055342,120]
[354611539,1740595905030,-500.0,0.00055342,120]
[354611541,1740595905040,-500.0,0.00055342,120]
[354611543,1740595905050,-500.0,0.00055342,120]
[354611545,1740595905060,-1463.13,0.00055342,120]
[354611547,1740595905070,-500.0,0.00055342,120]
[354611549,1740595905080,-2977.1,0.00055342,120]
[354611551,1740595905089,-3444.22,0.00055342,120]
[354611553,1740595905098,-1010.42,0.00055342,120]
[354611555,1740595905109,-522.19,0.00055342,30]
[354611557,1740595905119,-2884.86,0.00055342,120]
[354611559,1740595905128,-989.6,0.00055342,120]
[354611561,1740595905138,-1121.27,0.00055342,120]
[354611563,1740595905148,-500.0,0.00055342,120]
[354611565,1740595905158,-1101.44,0.00055342,120]
[354611567,1740595905167,-500.0,0.00055342,45]
[354611569,1740595905178,-1764.14,0.00055342,120]
[354611571,1740595905188,-588.25,0.00055342,120]
[354611573,1740595905197,-2377.1,0.00055342,120]
[354611575,1740595905207,-852.55,0.00055342,120]
[354611577,1740595905217,-1100.79,0.00055342,120]
[354611579,1740595905228,-1552.98,0.00055342,120]
[354611581,1740595905238,-500.0,0.00055342,120]
[354611583,1740595905247,-500.0,0.00055342,120]
[354611585,1740595905257,-543.36,0.00055342,120]
[354611587,1740595905267,-797.98,0.00055342,120]
[354611589,1740595905276,-951.27,0.00055342,120]
[354611591,1740595905287,-500.0,0.00055342,120]
[354611593,1740595905297,-888.97,0.00055342,120]
[354611595,1740595905307,-612.57,0.00055342,120]
[354611598,1740595905317,-2699.87,0.00055342,120]
[354611600,1740595905327,-1580.11,0.00055342,120]
[354611602,1740595905336,-500.0,0.00055342,120]
[354611604,1740595905346,-1704.51,0.00055342,120]
[354611606,1740595905358,-500.0,0.00055342,120]
[354611608,1740595905368,-788.27,0.00055342,120]
[354611610,1740595905378,-1099.83,0.00055342,120]
[354611612,1740595905388,-1902.4,0.00055342,120]
[354611614,1740595905398,-878.04,0.00055342,120]
[354611616,1740595905408,-500.0,0.00055342,120]
[354611618,1740595905418,-500.0,0.00055342,120]
[354611620,1740595905428,-500.0,0.00055342,120]
[354611622,1740595905439,-500.0,0.00055342,120]
[354611624,1740595905450,-1372.49,0.00055342,120]
[354611626,1740595905460,-500.0,0.00055342,120]
[354611628,1740595905470,-2314.27,0.00055342,120]
[354611630,1740595905480,-1486.63,0.00055342,120]
[354611632,1740595905490,-822.39,0.00055342,120]
[354611634,1740595905500,-901.59,0.00055342,120]
[354611636,1740595905510,-315.91070787,0.00055342,120]
[354611638,1740595905520,-1677.06,0.00055342,120]
[354611640,1740595905530,-1205.34,0.00055342,120]
[354611642,1740595905540,-500.0,0.00055342,120]
[354611644,1740595905549,-500.0,0.00055342,120]
[354611646,1740595905558,-2294.05,0.00055342,120]
[354611648,1740595905568,-500.0,0.00055342,120]
[354611650,1740595905577,-1120.61,0.00055342,120]
[354611652,1740595905587,-604.64,0.00055342,120]
[354611654,1740595905597,-500.0,0.00055342,120]
[354611656,1740595905608,-1074.36,0.00055342,120]
[354611658,1740595905618,-500.0,0.00055342,120]
[354611660,1740595905628,-527.7,0.00055342,120]
[354611661,1740595905637,-806.28,0.00055342,120]
[354611664,1740595905647,-1834.97,0.00055342,120]
[354611666,1740595905656,-500.0,0.00055342,120]
[354611668,1740595905665,-841.31,0.00055342,120]
[354611670,1740595905675,-1149.59,0.00055342,120]
[354611672,1740595905685,-500.0,0.00055342,120]
[354611674,1740595905694,-500.0,0.00055342,120]
[354611676,1740595905704,-500.0,0.00055342,120]
[354611678,1740595905713,-504.48,0.00055342,120]
[354611680,1740595905723,-597.63873354,0.00055342,120]
[354611682,1740595905732,-610.98,0.00055342,120]
[354611684,1740595905742,-500.0,0.00055342,120]
[354611686,1740595905752,-500.0,0.00055342,120]
[354611688,1740595905761,-919.11,0.00055342,120]
[354611690,1740595905771,-1139.22,0.00055342,120]
[354611692,1740595905780,-1427.81,0.00055342,120]
[354611694,1740595905790,-3966.28,0.00055342,120]
[354611695,1740595905799,-500.0,0.00055342,21]
[354611698,1740595905809,-1179.25,0.00055342,120]
[354611700,1740595905820,-643.49,0.00055342,120]
[354611702,1740595905830,-9738.58,0.00055342,120]
[354611703,1740595905839,-801.82,0.00055342,120]
[354611706,1740595905849,-500.0,0.00055342,120]
[354611708,1740595905860,-911.86,0.00055342,120]
[354611709,1740595905870,-500.0,0.00055342,120]
[354611712,1740595905880,-552.77,0.00055342,120]
[354611714,1740595905889,-500.05,0.00055342,120]
[354611715,1740595905899,-500.0,0.00055342,120]
[354611717,1740595905908,-587.37,0.00055342,120]
[354611720,1740595905918,-11052.45,0.00055342,120]
[354611721,1740595905928,-517.75,0.00055342,120]
[354611723,1740595905937,-3684.76,0.00055342,120]
[354611726,1740595905950,-3499.84,0.00055342,120]
[354611728,1740595905962,-1015.05,0.00055342,120]
[354611730,1740595905972,-13581.8,0.00055342,120]
[354611732,1740595905981,-1570.34,0.00055342,120]
[354611745,1740595906105,-15292.47,0.00055342,120]
[354611747,1740595906116,-500.0,0.00055342,120]
[354611749,1740595906126,-1020.31,0.00055342,120]
[354611751,1740595906136,-690.39,0.00055342,120]
[354611753,1740595906146,-834.44,0.00055342,30]
[354611755,1740595906156,-3105.4,0.00055342,120]
[354611757,1740595906166,-2309.16,0.00055342,120]
[354611759,1740595906176,-10799.99,0.00055342,120]
[354611761,1740595906186,-500.0,0.00055342,120]
[354611763,1740595906195,-850.01,0.00055342,120]
[354611765,1740595906205,-500.0,0.00055342,120]
[354611767,1740595906215,-4233.08,0.00055342,120]
[354611769,1740595906224,-4180.32,0.00055342,120]
[354611771,1740595906234,-2800.4,0.00055342,120]
[354611773,1740595906243,-583.3,0.00055342,120]
[354611775,1740595906253,-2084.49,0.00055342,120]
[354611777,1740595906262,-2951.73,0.00055342,120]
[354611779,1740595906272,-2431.59,0.00055342,120]
[354611781,1740595906282,-1918.79,0.00055342,120]
[354611783,1740595906292,-1679.17,0.00055342,120]
[354611785,1740595906302,-514.65,0.00055342,120]
[354611787,1740595906311,-2627.04,0.00055342,120]
[354611789,1740595906321,-1409.36,0.00055342,120]